bitfinex-derivatives/quotes_BTCF0:USTF0_20210108
["timestamp","ask_amount","ask_price","bid_price","bid_amount"]
[1610104174082,0.13632608,41361.0,41360.0,0.13632608]
[1610104174483,0.13632608,41361.0,41358.0,1.0]
[1610104176084,0.1167,41365.0,41358.0,1.0]
[1610104176485,0.07902,41374.0,41358.0,1.0]
[1610104176686,0.07902,41374.0,41344.0,0.13632608]
[1610104176687,0.13632608,41359.0,41344.0,0.13632608]
[1610104176886,0.12541,41393.0,41362.0,1.86367392]
[1610104177085,0.51218047,41414.0,41362.0,1.86367392]
[1610104177688,0.0002966,41413.0,41362.0,1.86367392]
[1610104178686,0.13632608,41363.0,41362.0,1.86367392]
[1610104178885,0.21559608,41363.0,41362.0,1.86367392]
[1610104180290,0.21559608,41363.0,41362.0,1.65107392]
[1610104180489,0.21559608,41363.0,41362.0,1.36127392]
[1610104180688,0.07927,41363.0,41362.0,1.36127392]
[1610104181089,0.21559608,41363.0,41362.0,1.36127392]
[1610104181489,0.21559608,41363.0,41283.0,0.13632608]
[1610104181689,0.21559608,41363.0,41247.0,0.2849]
[1610104182090,0.00029691,41362.0,41247.0,0.2849]
[1610104182290,0.00029691,41362.0,41248.0,0.00033639]
[1610104182492,0.00029691,41362.0,41248.0,0.11758639]
[1610104182893,0.03,41359.0,41249.0,0.00033645]
[1610104183091,0.13632608,41251.0,41249.0,0.00033645]
[1610104183693,0.13632608,41251.0,41248.0,0.10758645]
[1610104183893,0.11776,41303.0,41250.0,0.00033731]
[1610104184296,0.11776,41303.0,41249.0,0.00033733]
[1610104184492,0.11776,41303.0,41251.0,0.00033733]
[1610104184693,0.11776,41303.0,41250.0,0.00033733]
[1610104185093,0.11776,41303.0,41249.0,0.00033735]
[1610104185295,0.13632608,41256.0,41251.0,0.00033735]
[1610104185495,0.13632608,41256.0,41250.0,0.00033735]
[1610104185795,0.13632608,41256.0,41248.0,0.10758645]
[1610104187298,0.13632608,41250.0,41248.0,0.10758645]
[1610104187698,0.13632608,41250.0,41247.0,0.2849]
[1610104189099,0.13632608,41250.0,41246.0,0.17592937]
[1610104189299,0.11776,41303.0,41246.0,0.17592937]
[1610104189600,1.0,41354.0,41246.0,0.30185937]
[1610104190603,0.03,41359.0,41246.0,0.30185937]
[1610104193306,0.13632608,41247.0,41246.0,0.30185937]
[1610104194708,0.11045,41292.0,41246.0,0.30185937]
[1610104194908,0.42727644,41317.0,41246.0,0.30185937]
[1610104195309,0.13632608,41256.0,41246.0,0.30185937]
[1610104195508,0.1205,41303.0,41246.0,0.30185937]
[1610104196613,0.1205,41303.0,41238.0,0.13632608]
[1610104196614,0.1205,41303.0,41205.0,0.59269707]
[1610104196811,0.1205,41303.0,41246.0,0.12511]
[1610104197212,0.1205,41303.0,41266.0,0.13632608]
[1610104197411,0.1205,41303.0,41266.0,0.24091608]
[1610104197913,0.1205,41303.0,41266.0,0.10459]
[1610104199214,0.13632608,41267.0,41266.0,0.10459]
[1610104199816,0.13632608,41267.0,41246.0,0.12511]
[1610104201219,0.13632608,41247.0,41246.0,0.12511]
[1610104201819,0.13632608,41247.0,41205.0,0.59269707]
[1610104202220,0.13632608,41247.0,41206.0,0.00033859]
[1610104202620,0.13632608,41247.0,41206.0,0.08015859]
[1610104203019,0.13632608,41247.0,41206.0,0.07982]
[1610104203221,0.13632608,41207.0,41206.0,0.07982]
[1610104205222,0.69542608,41207.0,41206.0,0.07982]
[1610104205420,0.81383608,41207.0,41206.0,0.07982]
[1610104205620,0.81383608,41207.0,41205.0,0.59269707]
[1610104206622,3.4447,41206.0,41205.0,0.59269707]
[1610104207021,3.4447,41206.0,41205.0,0.47919707]
[1610104207222,3.4447,41206.0,41164.0,1.99228488]
[1610104207623,0.02,41205.0,41164.0,1.99228488]
[1610104208124,0.0385,41205.0,41164.0,1.99228488]
[1610104209229,0.13632608,41173.0,41164.0,1.99228488]
[1610104209427,0.22958608,41173.0,41164.0,1.99228488]
[1610104210930,0.73078608,41173.0,41164.0,1.99228488]
[1610104212433,0.22958608,41173.0,41164.0,1.99228488]
[1610104212633,3.3073,41166.0,41164.0,1.99228488]
[1610104213236,3.44362608,41166.0,41164.0,1.99228488]
[1610104213837,3.2861,41170.0,41164.0,1.99228488]
[1610104214040,0.09264,41166.0,41164.0,1.99228488]
[1610104214238,1.09264,41166.0,41164.0,1.99228488]
[1610104215239,1.22896608,41166.0,41164.0,1.99228488]
[1610104216241,0.22896608,41166.0,41164.0,1.99228488]
[1610104219048,0.09523,41175.0,41164.0,1.99228488]
[1610104219246,0.13632608,41166.0,41164.0,1.99228488]
[1610104219444,0.09523,41175.0,41164.0,1.99228488]
[1610104219647,3.5455,41208.0,41164.0,1.99228488]
[1610104219846,1.0,41226.0,41160.0,0.11614]
[1610104220246,3.4463,41251.0,41160.0,0.11614]
[1610104221246,3.4463,41251.0,41193.0,0.13632608]
[1610104221448,3.4463,41251.0,41193.0,0.23022608]
[1610104221849,3.4463,41251.0,41193.0,0.0939]
[1610104223350,0.13632608,41194.0,41193.0,0.0939]
[1610104223752,0.11894,41227.0,41193.0,0.0939]
[1610104224654,2.7472,41278.0,41193.0,0.0939]
[1610104225255,0.13632608,41217.0,41210.0,0.13632608]
[1610104225856,0.09374,41248.0,41210.0,0.13632608]
[1610104226057,0.09374,41248.0,41210.0,0.24072608]
[1610104226258,0.09374,41248.0,41216.0,6.0]
[1610104226458,2.7472,41278.0,41216.0,6.0]
[1610104226957,1.0,41292.0,41216.0,6.0]
[1610104227357,0.13632608,41248.0,41235.0,0.13632608]
[1610104227858,0.12245,41270.0,41235.0,0.13632608]
[1610104228058,0.12245,41270.0,41235.0,0.22691608]
[1610104228458,0.12245,41270.0,41235.0,0.09059]
[1610104228659,0.4034,41298.0,41235.0,0.09059]
[1610104229361,0.13632608,41246.0,41241.0,0.13632608]
[1610104229761,0.13632608,41246.0,41235.0,0.09059]
[1610104231262,0.13632608,41236.0,41235.0,0.09059]
[1610104231463,0.23426608,41236.0,41210.0,0.1044]
[1610104231661,0.23426608,41236.0,41201.0,0.13632608]
[1610104232462,0.23426608,41236.0,41193.0,0.0939]
[1610104232661,0.23426608,41236.0,41147.0,1.0]
[1610104233061,0.23426608,41236.0,41161.0,0.00035433]
[1610104233261,0.13632608,41197.0,41194.0,0.13632608]
[1610104233861,0.13632608,41197.0,41161.0,0.10071]
[1610104234262,0.13632608,41197.0,41196.0,1.0]
[1610104234862,0.08351,41212.0,41196.0,1.0]
[1610104234863,0.09931,41224.0,41196.0,1.0]
[1610104235263,0.09931,41224.0,41202.0,0.13632608]
[1610104235464,0.13632608,41206.0,41202.0,0.24987608]
[1610104235664,0.13632608,41206.0,41202.0,0.11355]
[1610104236564,0.13632608,41206.0,41201.0,1.0]
[1610104238165,0.13632608,41206.0,41188.0,0.10742]
[1610104239065,0.09913,41227.0,41188.0,0.10742]
[1610104239265,0.09913,41227.0,41212.0,0.13632608]
[1610104239966,0.09913,41227.0,41204.0,0.08359]
[1610104240566,0.09913,41227.0,41188.0,0.10742]
[1610104240767,0.09913,41227.0,41164.0,0.2767]
[1610104240966,0.09913,41227.0,41163.0,0.2749]
[1610104241368,2.7663,41235.0,41196.0,0.13632608]
[1610104241568,2.7663,41235.0,41196.0,0.25921608]
[1610104241768,1.26536875,41291.0,41196.0,0.25921608]
[1610104241970,3.4244,41268.0,41196.0,0.25921608]
[1610104243369,0.13632608,41197.0,41196.0,0.25921608]
[1610104243769,0.09043,41223.0,41196.0,0.25921608]
[1610104244170,0.09043,41223.0,41222.0,1.0]
[1610104245473,0.22675608,41223.0,41222.0,1.0]
[1610104246174,0.22675608,41223.0,41196.0,0.12289]
[1610104246775,0.22675608,41223.0,41190.0,0.13632608]
[1610104247374,0.13632608,41192.0,41190.0,0.13632608]
[1610104247574,0.09043,41223.0,41190.0,0.13632608]
[1610104247774,0.09043,41223.0,41191.0,0.0003555]
[1610104247976,0.09043,41223.0,41191.0,0.0938855]
[1610104248577,0.09043,41223.0,41191.0,0.09353]
[1610104248776,2.9316,41234.0,41191.0,0.09353]
[1610104249379,2.9316,41234.0,41192.0,0.00035549]
[1610104251480,0.13632608,41193.0,41192.0,0.00035549]
[1610104251881,0.13632608,41193.0,41183.0,0.00035564]
[1610104252182,0.13632608,41193.0,41190.0,1.0]
[1610104252680,0.13632608,41193.0,41191.0,0.00035565]
[1610104254581,0.13632608,41193.0,41172.0,0.00035569]
[1610104254784,0.13632608,41193.0,41192.0,0.00035569]
[1610104255083,0.13632608,41193.0,41172.0,0.00035569]
[1610104255284,0.10445,41206.0,41172.0,0.00035569]
[1610104255485,0.24077608,41206.0,41172.0,0.00035569]
[1610104255686,0.24077608,41206.0,41172.0,0.03010435]
[1610104256086,0.10445,41206.0,41172.0,0.03010435]
[1610104256286,0.10445,41206.0,41172.0,1.03010435]
[1610104256486,3.4213,41208.0,41172.0,1.03010435]
[1610104256687,3.4213,41208.0,41173.0,0.03010026]
[1610104257389,3.1213,41208.0,41207.0,0.13632608]
[1610104257787,3.1213,41208.0,41207.0,0.00035552]
[1610104258386,3.1213,41208.0,41198.0,0.00035552]
[1610104258586,3.1213,41208.0,41207.0,0.00035552]
[1610104258786,3.1213,41208.0,41199.0,0.00035555]
[1610104258986,0.12691,41224.0,41199.0,0.00035555]
[1610104259187,0.12691,41224.0,41198.0,0.00035555]
[1610104259387,0.12691,41224.0,41220.0,0.13632608]
[1610104259789,0.12691,41224.0,41208.0,0.09554]
[1610104259990,0.13632608,41228.0,41221.0,0.00035547]
[1610104260188,0.13632608,41228.0,41208.0,0.09554]
[1610104260189,0.13632608,41228.0,41209.0,0.00035547]
[1610104260389,0.13632608,41228.0,41222.0,0.00035547]
[1610104260788,0.13632608,41228.0,41209.0,0.00035547]
[1610104260991,0.13632608,41228.0,41222.0,0.00035547]
[1610104261188,0.13632608,41228.0,41210.0,0.00035547]
[1610104261488,0.13632608,41228.0,41208.0,0.09554]
[1610104261489,0.13632608,41211.0,41209.0,0.03009488]
[1610104261890,0.13632608,41211.0,41197.0,0.12721]
[1610104262090,0.13632608,41211.0,41210.0,0.00035549]
[1610104262291,0.12536,41221.0,41198.0,0.03009893]
[1610104262692,0.12536,41221.0,41210.0,0.00035555]
[1610104262894,0.12536,41221.0,41199.0,0.00035555]
[1610104263094,0.12536,41221.0,41211.0,0.00035555]
[1610104263494,0.12536,41221.0,41209.0,0.13632608]
[1610104263694,0.12536,41221.0,41212.0,0.00035552]
[1610104263893,0.12536,41221.0,41210.0,0.00035552]
[1610104264295,0.12536,41221.0,41213.0,0.00035552]
[1610104264496,0.12536,41221.0,41211.0,0.00035552]
[1610104264694,0.12536,41221.0,41214.0,0.00035552]
[1610104264897,0.12536,41221.0,41185.0,0.02974483]
[1610104264898,0.12536,41221.0,41212.0,0.00035552]
[1610104265294,0.12536,41221.0,41185.0,0.03010037]
[1610104265495,0.12536,41221.0,41213.0,0.00035554]
[1610104265895,0.12536,41221.0,41197.0,0.13632608]
[1610104266095,0.12536,41221.0,41214.0,0.00035554]
[1610104266296,0.12536,41221.0,41213.0,1.0]
[1610104266499,0.12536,41221.0,41215.0,0.00035554]
[1610104266696,0.48265979,41223.0,41215.0,0.00035554]
[1610104266898,0.48265979,41223.0,41213.0,1.0]
[1610104266899,0.48265979,41223.0,41216.0,0.00035555]
[1610104267496,0.13632608,41217.0,41214.0,0.00035555]
[1610104267698,0.13632608,41217.0,41213.0,1.0]
[1610104267896,0.13632608,41217.0,41215.0,0.00035567]
[1610104268097,0.57852608,41217.0,41213.0,0.88765567]
[1610104268298,0.57852608,41217.0,41172.0,0.2728]
[1610104268499,0.57852608,41217.0,41214.0,0.00035568]
[1610104268698,0.00029756,41216.0,41173.0,0.03011154]
[1610104268898,0.00029756,41216.0,41215.0,0.00035569]
[1610104269304,0.00029756,41216.0,41162.0,0.03011486]
[1610104269498,0.00029756,41216.0,41144.0,0.2849]
[1610104269499,0.13632608,41163.0,41149.0,0.13632608]
[1610104270098,0.13632608,41163.0,41162.0,0.03011427]
[1610104270300,0.13632608,41163.0,41149.0,0.13632608]
[1610104270301,0.13632608,41163.0,41160.0,0.08274]
[1610104270500,0.07803,41184.0,41162.0,0.03011327]
[1610104270900,0.07803,41184.0,41160.0,0.08274]
[1610104270901,0.07803,41184.0,41161.0,0.03011279]
[1610104271101,0.07803,41184.0,41163.0,0.03011247]
[1610104271301,0.07803,41184.0,41160.0,0.08274]
[1610104271302,0.07803,41184.0,41162.0,0.03011087]
[1610104271503,0.07803,41184.0,41183.0,0.13632608]
[1610104271703,0.2988,41222.0,41183.0,0.13632608]
[1610104271903,1.5,41200.0,41183.0,0.1664283]
[1610104272102,1.61491,41200.0,41184.0,0.03010166]
[1610104272503,1.61491,41200.0,41194.0,1.0]
[1610104272905,0.00306987,41199.0,41195.0,0.00034769]
[1610104273303,0.00306997,41198.0,41195.0,0.00034769]
[1610104273503,0.57535898,41196.0,41195.0,0.00034769]
[1610104274206,1.45902295,41196.0,41195.0,0.00034769]
[1610104274404,2.45902295,41196.0,41195.0,0.00034769]
[1610104274804,3.1033845,41196.0,41184.0,0.01]
[1610104275004,0.00307473,41186.0,41185.0,0.00034769]
[1610104275203,0.09289473,41186.0,41185.0,0.00034769]
[1610104275405,0.5432931,41186.0,41172.0,1.0]
[1610104275603,2.7433,41173.0,41172.0,1.0]
[1610104275805,2.86064,41173.0,41172.0,1.0]
[1610104276206,2.86064,41173.0,41172.0,1.0003478]
[1610104276605,2.86812056,41173.0,41172.0,0.0003478]
[1610104277005,3.74598793,41173.0,41125.0,0.08967879]
[1610104277205,2.85064,41173.0,41172.0,0.00034782]
[1610104277404,2.85064,41173.0,41126.0,0.15680579]
[1610104277605,2.32102063,41173.0,41127.0,0.13632608]
[1610104277805,0.00308255,41162.0,41127.0,0.16645297]
[1610104278006,0.00308255,41162.0,41128.0,0.03012644]
[1610104278205,0.07856,41162.0,41128.0,0.03012644]
[1610104278405,1.0,41155.0,41135.0,1.0]
[1610104278807,1.0,41155.0,41136.0,0.03012608]
[1610104279006,1.0,41155.0,41136.0,0.00034784]
[1610104279607,0.13632608,41137.0,41136.0,0.00034784]
[1610104280407,0.13632608,41137.0,41136.0,1.00034784]
[1610104280807,0.13632608,41137.0,41136.0,1.0]
[1610104281006,0.13632608,41137.0,41136.0,1.00034789]
[1610104282406,0.13632608,41137.0,41136.0,0.00034789]
[1610104282806,0.13632608,41137.0,41127.0,0.00034792]
[1610104283006,0.13632608,41137.0,41136.0,0.00034794]
[1610104283406,0.13632608,41137.0,41127.0,0.00034794]
[1610104283607,0.13632608,41132.0,41126.0,0.12668]
[1610104283807,0.13632608,41132.0,41128.0,0.00034794]
[1610104284006,0.12593,41152.0,41128.0,0.00034794]
[1610104284206,0.12593,41152.0,41127.0,0.00034792]
[1610104284407,0.12593,41152.0,41151.0,1.0]
[1610104284808,0.04856,41162.0,41151.0,1.0]
[1610104285007,0.04856,41162.0,41151.0,1.00034788]
[1610104285207,0.01053487,41175.0,41152.0,0.00034784]
[1610104285407,0.00307184,41178.0,41152.0,0.00034784]
[1610104285607,0.00307171,41179.0,41177.0,0.13632608]
[1610104286006,0.0928915,41186.0,41177.0,0.13632608]
[1610104286208,0.0928915,41186.0,41178.0,0.00034779]
[1610104286407,0.01053041,41190.0,41178.0,0.00034779]
[1610104286608,0.00307093,41199.0,41178.0,0.00034779]
[1610104287010,1.5,41200.0,41178.0,0.00034779]
[1610104287408,1.2197,41200.0,41178.0,0.00034779]
[1610104287611,1.2197,41200.0,41199.0,0.13632608]
[1610104288210,1.2197,41200.0,41199.0,0.13667356]
[1610104288609,1.2197,41200.0,41199.0,0.13667352]
[1610104288610,0.1704,41200.0,41199.0,0.13667352]
[1610104289909,0.52692033,41233.0,41199.0,0.13667352]
[1610104290109,0.01477834,41236.0,41199.0,0.13667352]
[1610104290310,0.64395504,41242.0,41199.0,0.13667352]
[1610104290311,0.52708678,41240.0,41200.0,0.00034736]
[1610104290509,0.52707542,41242.0,41200.0,0.00034736]
[1610104291311,0.52698925,41250.0,41200.0,0.00034736]
[1610104291510,0.52692756,41252.0,41249.0,0.13632608]
[1610104291911,0.52680144,41259.0,41249.0,0.13632608]
[1610104292310,0.88329733,41264.0,41249.0,0.13632608]
[1610104292511,0.52647005,41267.0,41249.0,0.13632608]
[1610104292711,0.52647005,41267.0,41249.0,0.22578608]
[1610104292911,0.52648222,41268.0,41249.0,0.08946]
[1610104293111,0.52648286,41267.0,41249.0,0.08946]
[1610104293311,0.64035286,41267.0,41249.0,0.08946]
[1610104293512,0.13632608,41250.0,41249.0,0.08946]
[1610104293713,0.13632608,41250.0,41234.0,0.09332]
[1610104294111,0.13632608,41250.0,41235.0,0.00034724]
[1610104294512,0.13632608,41250.0,41225.0,0.08608]
[1610104294713,0.13632608,41250.0,41236.0,0.00034729]
[1610104294912,0.08818,41251.0,41236.0,0.00034729]
[1610104295112,0.08818,41251.0,41226.0,0.00034729]
[1610104295314,0.08818,41251.0,41225.0,0.08608]
[1610104295514,0.08818,41251.0,41250.0,0.13632608]
[1610104296113,0.08818,41251.0,41225.0,0.08608]
[1610104297515,0.08818,41251.0,41250.0,0.13632608]
[1610104298518,0.52504093,41272.0,41251.0,0.0187]
[1610104298919,0.52492533,41279.0,41251.0,0.0187]
[1610104299319,0.52441183,41288.0,41251.0,0.0187]
[1610104299519,0.13632608,41288.0,41287.0,0.13632608]
[1610104299919,0.13632608,41288.0,41263.0,0.12042]
[1610104300320,0.22816608,41288.0,41263.0,0.12042]
[1610104300920,0.09184,41288.0,41263.0,0.12042]
[1610104301522,0.09184,41288.0,41287.0,0.13632608]
[1610104303924,0.52196874,41316.0,41287.0,0.13632608]
[1610104304126,0.52194935,41319.0,41287.0,0.13632608]
[1610104304525,0.52117286,41330.0,41287.0,0.13632608]
[1610104304725,0.52103255,41333.0,41287.0,0.13632608]
[1610104305125,0.52100349,41335.0,41287.0,0.13632608]
[1610104305325,1.34425864,41349.0,41287.0,0.13632608]
[1610104305326,0.52012277,41342.0,41287.0,0.13632608]
[1610104305525,0.52012277,41342.0,41341.0,0.13632608]
[1610104305726,0.52009075,41347.0,41341.0,0.13632608]
[1610104305926,0.13632608,41352.0,41341.0,0.13484339]
[1610104306527,0.2812,41355.0,41341.0,0.13484339]
[1610104307230,0.63275101,41373.0,41341.0,0.13484339]
[1610104307630,0.63264747,41378.0,41372.0,0.13632608]
[1610104308030,0.63259369,41388.0,41372.0,0.13632608]
[1610104308230,0.63235203,41401.0,41372.0,0.13632608]
[1610104308429,0.63235203,41401.0,41387.0,6.0]
[1610104308631,0.6305547,41413.0,41387.0,6.0]
[1610104309029,0.80248509,41423.0,41387.0,6.0]
[1610104309030,0.63049688,41415.0,41387.0,6.0]
[1610104309232,0.63042665,41421.0,41387.0,6.0]
[1610104309630,0.62840564,41428.0,41417.0,0.13632608]
[1610104310031,0.0740357,41411.0,41387.0,6.0]
[1610104310231,0.13632608,41430.0,41387.0,6.0]
[1610104310232,0.11674721,41418.0,41387.0,6.0]
[1610104310430,0.11674721,41418.0,41359.0,0.10576]
[1610104310830,0.11674721,41418.0,41387.0,0.0109]
[1610104311631,0.13632608,41395.0,41387.0,0.0109]
[1610104311834,0.22348608,41395.0,41387.0,0.0109]
[1610104312031,0.21206615,41388.0,41387.0,0.0109]
[1610104313232,0.21206615,41388.0,41331.0,1.0]
[1610104313633,0.21206615,41388.0,41362.0,0.13632608]
[1610104315637,0.21206615,41388.0,41387.0,0.13632608]
[1610104315837,0.21206615,41388.0,41341.0,0.09217]
[1610104315838,0.21206615,41388.0,41359.0,0.11846]
[1610104316939,0.21206615,41388.0,41341.0,0.09217]
[1610104317742,0.13632608,41387.0,41381.0,0.13632608]
[1610104318142,0.21206615,41388.0,41381.0,0.13632608]
[1610104319642,0.21206615,41388.0,41387.0,0.13632608]
[1610104320443,0.21206615,41388.0,41387.0,6.13632608]
[1610104321644,0.34839223,41388.0,41387.0,6.0]
[1610104321846,0.21206615,41388.0,41387.0,6.0]
[1610104322444,0.21206615,41388.0,41341.0,0.09217]
[1610104322644,0.21206615,41388.0,41330.0,0.07827]
[1610104323044,0.21206615,41388.0,41320.0,1.0]
[1610104323645,0.21206615,41388.0,41363.0,0.13632608]
[1610104324245,0.21206615,41388.0,41334.0,0.10414]
[1610104324846,0.21206615,41388.0,41285.0,1.0]
[1610104325046,0.21206615,41388.0,41286.0,0.2822]
[1610104325246,0.2786,41387.0,41286.0,0.2822]
[1610104325645,0.2786,41387.0,41364.0,0.13632608]
[1610104325845,0.21206615,41388.0,41364.0,0.13632608]
[1610104326046,0.21206615,41388.0,41316.0,0.08518]
[1610104326448,1.7836,41387.0,41316.0,0.08518]
[1610104326850,2.8699,41383.0,41316.0,0.08518]
[1610104327048,1.58462,41382.0,41286.0,0.2822]
[1610104327448,1.58462,41382.0,41275.0,1.0]
[1610104327648,0.13632608,41308.0,41298.0,0.13632608]
[1610104328049,0.106,41308.0,41298.0,0.13632608]
[1610104328449,0.106,41308.0,41220.0,1.0]
[1610104328648,3.4863,41306.0,41220.0,1.0]
[1610104329050,3.4863,41306.0,41252.0,0.00034695]
[1610104329450,3.4863,41306.0,41252.0,0.03001468]
[1610104329650,0.13632608,41304.0,41288.0,0.13632608]
[1610104330050,0.13632608,41304.0,41289.0,0.00034682]
[1610104330249,0.13632608,41304.0,41288.0,0.13632608]
[1610104330451,0.13632608,41304.0,41303.0,1.0]
[1610104331054,0.13632608,41304.0,41303.0,0.0001]
[1610104331259,0.20902608,41304.0,41303.0,0.0001]
[1610104331456,0.13632608,41304.0,41269.0,0.08962]
[1610104331657,3.4863,41306.0,41284.0,0.13632608]
[1610104332255,3.4863,41306.0,41269.0,0.08962]
[1610104332651,3.4863,41306.0,41248.0,0.0912]
[1610104333258,3.4863,41306.0,41252.0,0.00035308]
[1610104333860,0.072,41305.0,41262.0,0.13632608]
[1610104334264,0.072,41305.0,41263.0,0.00035313]
[1610104334654,3.4863,41306.0,41263.0,0.00035313]
[1610104335354,4.4863,41306.0,41263.0,0.00035313]
[1610104335553,0.0724,41305.0,41263.0,0.00035313]
[1610104335754,0.0724,41305.0,41274.0,0.13632608]
[1610104336557,4.4863,41306.0,41274.0,0.13632608]
[1610104336956,1.0,41306.0,41274.0,0.13632608]
[1610104337357,0.106,41308.0,41274.0,0.13632608]
[1610104337557,3.346,41348.0,41274.0,0.13632608]
[1610104337759,0.08462,41382.0,41329.0,0.13632608]
[1610104338157,2.9732,41391.0,41329.0,0.13632608]
[1610104338558,2.9732,41391.0,41270.0,0.10335]
[1610104338757,4.4732,41391.0,41287.0,0.12019]
[1610104338960,2.9732,41391.0,41287.0,0.12019]
[1610104339359,2.9732,41391.0,41288.0,0.00035276]
[1610104339759,0.22587608,41327.0,41302.0,0.13632608]
[1610104340764,0.08955,41327.0,41302.0,0.13632608]
[1610104341164,0.08955,41327.0,41303.0,0.00035276]
[1610104341764,0.08955,41327.0,41326.0,0.13632608]
[1610104342363,2.8424,41387.0,41326.0,0.13632608]
[1610104342665,0.274,41407.0,41326.0,0.13632608]
[1610104343064,0.274,41407.0,41327.0,0.00035264]
[1610104343866,0.13632608,41360.0,41354.0,0.13632608]
[1610104344067,0.23249608,41360.0,41354.0,0.13632608]
[1610104344668,0.09617,41360.0,41354.0,0.13632608]
[1610104345869,0.09617,41360.0,41359.0,0.13632608]
[1610104346269,0.09617,41360.0,41331.0,0.11421]
[1610104346669,0.09617,41360.0,41332.0,0.00035256]
[1610104347269,0.09617,41360.0,41321.0,0.00035256]
[1610104347469,0.09617,41360.0,41333.0,0.00035256]
[1610104347869,0.09617,41360.0,41322.0,0.00035256]
[1610104348072,0.09617,41360.0,41334.0,0.00035256]
[1610104348270,0.09617,41360.0,41323.0,0.00035256]
[1610104348471,0.09617,41360.0,41310.0,0.10472]
[1610104348870,0.09617,41360.0,41300.0,0.09629]
[1610104348871,0.09617,41360.0,41311.0,0.00035263]
[1610104349071,2.9877,41395.0,41311.0,0.00035263]
[1610104349271,2.9877,41395.0,41301.0,0.00035266]
[1610104349272,0.62956898,41391.0,41301.0,0.00035266]
[1610104349471,0.72598898,41391.0,41301.0,0.00035266]
[1610104349672,0.63058068,41385.0,41301.0,0.00035266]
[1610104349873,0.13632608,41317.0,41314.0,0.13632608]
[1610104350073,0.22814608,41317.0,41314.0,0.13632608]
[1610104350473,0.22814608,41317.0,41315.0,0.00035275]
[1610104351272,0.22814608,41317.0,41289.0,0.00035279]
[1610104351473,0.22814608,41317.0,41288.0,0.01957831]
[1610104351675,0.22814608,41317.0,41290.0,0.00035283]
[1610104351876,0.22814608,41317.0,41302.0,0.13632608]
[1610104351877,0.09182,41317.0,41302.0,0.13632608]
[1610104352275,0.09182,41317.0,41303.0,0.00035283]
[1610104353877,0.09182,41317.0,41316.0,0.13632608]
[1610104354077,0.09182,41317.0,41303.0,0.00035283]
[1610104354481,0.09182,41317.0,41297.0,0.00035271]
[1610104354677,0.09182,41317.0,41304.0,0.00035273]
[1610104354878,0.09182,41317.0,41298.0,0.00035275]
[1610104355277,0.09558,41317.0,41289.0,0.00035277]
[1610104355478,0.09558,41317.0,41299.0,0.00035277]
[1610104355679,0.09558,41317.0,41290.0,0.0003528]
[1610104355880,0.13632608,41305.0,41304.0,0.13632608]
[1610104356084,0.09558,41317.0,41304.0,0.13632608]
[1610104356280,0.09558,41317.0,41304.0,0.13667888]
[1610104356480,0.09558,41317.0,41305.0,0.0003528]
[1610104356881,0.09558,41317.0,41288.0,0.01957831]
[1610104356882,0.09558,41317.0,41289.0,0.00035283]
[1610104357082,0.09558,41317.0,41306.0,0.00035283]
[1610104357281,0.09558,41317.0,41290.0,0.00035285]
[1610104357482,1.09558,41317.0,41290.0,0.00035285]
[1610104357683,1.09558,41317.0,41307.0,0.00035285]
[1610104357884,0.13632608,41308.0,41291.0,0.00035285]
[1610104358083,0.22627608,41308.0,41288.0,0.01957831]
[1610104358483,0.22627608,41308.0,41292.0,0.00035289]
[1610104358683,0.22627608,41308.0,41289.0,0.00035289]
[1610104358883,0.22627608,41308.0,41293.0,0.00035289]
[1610104359282,0.22627608,41308.0,41290.0,0.000353]
[1610104359482,0.22627608,41308.0,41288.0,0.01957831]
[1610104359885,0.13632608,41289.0,41288.0,0.01957831]
[1610104360082,0.26146608,41289.0,41288.0,0.01957831]
[1610104361383,0.26146608,41289.0,41288.0,0.01993138]
[1610104363187,0.26146608,41289.0,41288.0,0.01957831]
[1610104363986,0.26146608,41289.0,41288.0,0.01993133]
[1610104364187,0.12514,41289.0,41288.0,0.01993133]
[1610104364989,0.12514,41289.0,41288.0,0.01993125]
[1610104365189,0.08833,41297.0,41288.0,0.01993125]
[1610104365590,0.08833,41297.0,41289.0,0.00035294]
[1610104365791,0.13632608,41291.0,41289.0,0.00035294]
[1610104367592,0.08833,41297.0,41289.0,0.00035294]
[1610104367790,0.13632608,41295.0,41291.0,0.13632608]
[1610104368191,0.08833,41297.0,41292.0,0.00035482]
[1610104369392,0.09558,41317.0,41292.0,0.00035482]
[1610104369592,0.271,41354.0,41292.0,0.00035482]
[1610104369593,0.01465475,41337.0,41292.0,0.00035482]
[1610104369793,0.01465356,41342.0,41329.0,0.13632608]
[1610104370193,0.43535246,41349.0,41329.0,0.13632608]
[1610104370393,0.35568925,41356.0,41329.0,0.13632608]
[1610104370394,0.4354989,41356.0,41330.0,0.00035466]
[1610104370596,0.43546761,41357.0,41330.0,0.00035466]
[1610104371195,0.43555754,41356.0,41330.0,0.00035466]
[1610104371594,0.55442754,41356.0,41330.0,0.00035466]
[1610104371796,0.55442754,41356.0,41344.0,0.13632608]
[1610104371998,0.11887,41356.0,41344.0,0.13632608]
[1610104372899,0.11887,41356.0,41345.0,0.00035407]
[1610104373899,0.11887,41356.0,41355.0,0.13632608]
[1610104374298,0.11887,41356.0,41318.0,0.11403]
[1610104374898,0.11887,41356.0,41319.0,0.00035403]
[1610104375800,0.11887,41356.0,41345.0,0.13632608]
[1610104376000,0.11887,41356.0,41319.0,0.00035403]
[1610104376200,0.11887,41356.0,41318.0,0.11403]
[1610104376401,0.11887,41356.0,41320.0,0.00035408]
[1610104376600,1.5,41365.0,41319.0,0.00035412]
[1610104376801,0.43598443,41356.0,41319.0,0.00035412]
[1610104377000,0.43601188,41354.0,41289.0,0.03000983]
[1610104377201,0.43601188,41354.0,41320.0,0.00035416]
[1610104377400,0.43608274,41353.0,41290.0,0.00035418]
[1610104377801,0.13632608,41334.0,41329.0,0.13632608]
[1610104378201,0.24953608,41334.0,41330.0,0.00035416]
[1610104379402,0.24953608,41334.0,41289.0,0.03001501]
[1610104379603,0.24953608,41334.0,41331.0,0.0003542]
[1610104379804,0.24953608,41334.0,41313.0,0.13632608]
[1610104380205,0.24953608,41334.0,41314.0,0.00035422]
[1610104381006,1.74953608,41334.0,41289.0,0.03001958]
[1610104381209,1.74953608,41334.0,41315.0,0.00035428]
[1610104381406,0.43735047,41327.0,41290.0,0.00035431]
[1610104381608,0.43737399,41325.0,41290.0,0.00035431]